Cogmind - Beta 11.1 @@@ ROGUE MODE // 2022.07.18 @ 15:48:55 // AFD2020/Player2 Player: Calazard Result: Destroyed by Y-45 Defender with Beam Rifle Performance ------------- Evolutions (1) 500 Regions Visited (4) 800 Robots Destroyed (10) 50 Value Destroyed (253) 253 Prototype IDs (1) 20 Alien Tech Used (0) 0 Bonus (142) 142 TOTAL SCORE: 1765 Bonus ------- High Alert Combat Kills 19 Follower Combat Kills 372 Friendly Fire -249 Cogmind --------- Core Integrity 0/400 Matter 35/300 Energy 99/100 System Corruption 20% Temperature Cool (9) Movement Core (100) Ox1 Location -9/Storage Parts ------- > --- POWER (1) -------- (None) > --- PROPULSION (2) --- (None) > --- UTILITY (4) ------ Disposable Heat Sink Small Storage Unit Targeting Computer > --- WEAPON (2) ------- (None) > --- INVENTORY (8) ---- Light Ion Engine Backup Power I Sensor Array Peak State ------------ > --- POWER ------------ Ion Engine > --- PROPULSION ------- (None) > --- UTILITY ---------- Disposable Heat Sink Small Storage Unit Sensor Array Targeting Computer > --- WEAPON ----------- Scatter Rocket Array Scatter Rocket Array > --- INVENTORY -------- Light Ion Engine Backup Power I Sensor Array [Rating: 18] Favorites ----------- Power Ion Engine Engine Ion Engine Propulsion Light Treads Treads Light Treads Leg Aluminum Leg Utility Small Storage Unit Device Disposable Heat Sink Storage Small Storage Unit Processor Targeting Computer Weapon Beam Cannon Energy Gun Backup Laser I Energy Cannon Beam Cannon Launcher Scatter Rocket Array Build | -11 -10 -10 -9 -9 ------- Run | Scr Mat Min Mat Sto Slots Evolved 2 | . . . 2 . Power . | . . . . . Propulsion . | . . . . . Utility 2 | . . . 2 . Weapon . | . . . . . Parts Attached 15 | 4 3 . 2 6 Power 2 | 1 . . . 1 Engine 2 | 1 . . . 1 Core . | . . . . . Reactor . | . . . . . Propulsion 4 | 2 . . . 2 Treads 2 | 2 . . . . Leg 2 | . . . . 2 Wheel . | . . . . . Hover . | . . . . . Flight . | . . . . . Utility 5 | 1 1 . 2 1 Device 3 | . . . 2 1 Storage 1 | 1 . . . . Processor 1 | . 1 . . . Hackware . | . . . . . Protection . | . . . . . Artifact . | . . . . . Weapon 4 | . 2 . . 2 Energy Gun . | . . . . . Energy Cannon 2 | . 2 . . . Ballistic Gun . | . . . . . Ballistic Cannon . | . . . . . Launcher 2 | . . . . 2 Special Weapon . | . . . . . Impact Weapon . | . . . . . Slashing Weapon . | . . . . . Piercing Weapon . | . . . . . Special Melee Weapon . | . . . . . Unidentified Prototypes 1 | . . . . 1 Corrupted Parts 2 | . . . . 2 System Corruption 20 | . . . . 20 Parts Lost 10 | . . . 2 8 Power 2 | . . . 1 1 Propulsion 4 | . . . . 4 Utility 1 | . . . . 1 Weapon 3 | . . . 1 2 Highest Loss Streak 4 | . . . 2 4 To Critical Strikes . | . . . . . Average Slot Usage (%) 82 | . 90 100 84 71 Engine 9 | . 14 14 6 5 Treads 17 | . 28 28 22 8 Device 11 | . . . 17 19 Storage 12 | . 14 14 11 11 Processor 11 | . 10 14 11 11 Energy Gun 1 | . . . . 3 Energy Cannon 15 | . 21 28 17 7 Launcher 2 | . . . . 4 Naked Turns . | . . . . . Heaviest Build 28 | 10 16 16 18 28 Greatest Support 40 | 40 40 40 40 40 Greatest Overweight (x) 9 | . . . . 9 Average Overweight (x) . | . . . . 1 Largest Inventory Capacity 8 | 8 8 8 8 8 Average Capacity 7 | 6 8 8 8 8 Most Carried 7 | 7 6 1 1 3 Average Carried 1 | 4 . 1 1 2 Final Capacity 8 | 8 8 8 8 8 Final Carried 7 | 7 1 1 1 3 Class Distribution -------------------- 100% | Mutant Dominant Class ---------------- Mutant | -10/Materials Mutant | -10/Mines Mutant | -9/Materials Mutant | -9/Storage Resources | -11 -10 -10 -9 -9 ----------- Run | Scr Mat Min Mat Sto Matter Collected 284 | 240 24 . 10 10 Remotely . | . . . . . Salvage Created 214 | . 53 . . 161 Parts 20 | . 5 . . 15 Haulers Intercepted . | . . . . . Recyclers Shooed . | . . . . . Parts Field Recycled . | . . . . . Retrieved Matter . | . . . . . Parts Self-Destructed . | . . . . . Prevented . | . . . . . Kills | -11 -10 -10 -9 -9 ------- Run | Scr Mat Min Mat Sto Combat Hostiles Destroyed 6 | . 2 . . 4 Melee 1 | . 1 . . . Cannons 2 | . 1 . . 1 AOE 3 | . . . . 3 Classes Destroyed 5 | . 2 . . 3 Worker 1 | . . . . 1 Builder 1 | . . . . 1 Operator 2 | . 1 . . 1 Grunt 5 | . 2 . . 3 Sentry 1 | . . . . 1 Best Kill Streak 4 | . 2 . . 4 Combat Bots Only 3 | . 2 . . 3 Max Kills in Single Turn 4 | . 1 . . 4 Gunslinging . | . . . . . Exploded 3 | . . . . 3 Melee 1 | . 1 . . . Uniques/NPCs Destroyed . | . . . . . Combat | -11 -10 -10 -9 -9 -------- Run | Scr Mat Min Mat Sto Damage Taken 1549 | . 399 7 115 1028 Core 397 | . 69 . 7 321 Absorbed by Shields . | . . . . . Core Remaining (%) 83 | 100 . 67 . . Volleys Fired 19 | . 6 1 1 11 Largest 2 | . 2 2 2 2 Hottest 120 | . 120 120 120 100 Shots Fired 35 | . 12 2 2 19 Gun 7 | . . . . 7 Cannon 23 | . 12 2 2 7 Launcher 5 | . . . . 5 Special . | . . . . . Kinetic . | . . . . . Thermal 30 | . 12 2 2 14 Explosive 5 | . . . . 5 Electromagnetic . | . . . . . Robot Hit Streak 3 | . 3 . 1 3 Robot Miss Streak 5 | . 3 2 3 5 Penetration Max . | . . . . . Secondary Targets . | . . . . . Shots Hit Robots 13 | . 6 . 1 6 Core Hits 13 | . 2 . . 11 Critical Kills . | . . . . . Critical Parts Destroyed . | . . . . . Critical Strikes . | . . . . . Melee Attacks . | . . . . . Impact . | . . . . . Slashing . | . . . . . Piercing . | . . . . . Sneak Attacks . | . . . . . Combat Hostiles . | . . . . . Follow-up Attacks . | . . . . . Damage Inflicted 577 | . 185 8 17 367 Guns 17 | . . . . 17 Cannons 230 | . 159 . 17 54 Explosions 293 | . . . . 293 Melee . | . . . . . Ramming 37 | . 26 8 . 3 Kinetic . | . . . . . Thermal 247 | . 159 . 17 71 Explosive 293 | . . . . 293 Electromagnetic . | . . . . . Impact . | . . . . . Slashing . | . . . . . Piercing . | . . . . . Highest Corruption 20 | . . . . 20 Average Corruption 19 | . . . . 19 Corruption Purged . | . . . . . Corruption Blocked . | . . . . . Effects 8 | . . . . 8 Message Errors 4 | . . . . 4 Data Loss (minor) 2 | . . . . 2 Data Loss (major) 1 | . . . . 1 Misdirections 1 | . . . . 1 Overload Shots . | . . . . . Overflow Damage 23 | . 6 . . 17 Projectiles 6 | . 6 . . . Explosions 17 | . . . . 17 Melee . | . . . . . Knockbacks . | . . . . . Impact . | . . . . . Kinetic . | . . . . . Secondary . | . . . . . Self-Inflicted Damage 378 | . . . . 378 Shots 20 | . . . . 20 Rammed 11 | . 10 1 . . Targets Rammed 14 | . 12 1 . 1 Kicked . | . . . . . Crushed 3 | . 2 . . 1 Highest Temperature 384 | . 384 60 36 63 Average Temperature 107 | . 176 31 22 25 Received Heat Transfer 360 | . 207 . 9 144 Effects 2 | . 2 . . . Energy Bleed 1 | . 1 . . . Damage (minor) 1 | . 1 . . . Siege Activations . | . . . . . Robots Corrupted . | . . . . . Combat Hostiles . | . . . . . Parts Fried . | . . . . . Impact Corruptions . | . . . . . Robots Melted . | . . . . . Combat Hostiles . | . . . . . Parts Melted . | . . . . . Heat Transferred 555 | . 333 . 37 185 Parts Sabotaged . | . . . . . Parts Stolen . | . . . . . Parts Stripped . | . . . . . Power Chain Reactions . | . . . . . Missiles Intercepted . | . . . . . Alert | -11 -10 -10 -9 -9 ------- Run | Scr Mat Min Mat Sto Peak Influence 537 | . 231 177 227 537 Initial 95 | . . 90 68 95 Average 212 | . 115 176 112 324 Maximum Alert Level 2 | . 1 . 1 2 Low Security (%) 61 | 100 85 100 87 22 Level 1 22 | . 14 . 12 41 Level 2 15 | . . . . 35 Level 3 . | . . . . . Level 4 . | . . . . . Level 5 . | . . . . . High Security . | . . . . . Max Security . | . . . . . Squads Dispatched 6 | . 2 . . 4 Investigation 1 | . 1 . . . Extermination . | . . . . . Reinforcement 3 | . 1 . . 2 Assault . | . . . . . Garrison 2 | . . . . 2 Intercept . | . . . . . Searches Triggered . | . . . . . Construction Impeded . | . . . . . Haulers Reinforced . | . . . . . Active Scanning Responses . | . . . . . Cargo Convoy Interrupts . | . . . . . Stealth | -11 -10 -10 -9 -9 --------- Run | Scr Mat Min Mat Sto Distress Signals 1 | . . . 1 . Communications Jammed . | . . . . . Distress Signals . | . . . . . Times Spotted 37 | . 11 3 6 17 Peak Tracking Total 6 | . 4 3 3 6 Tactical Retreats . | . . . . . Traps | -11 -10 -10 -9 -9 ------- Run | Scr Mat Min Mat Sto Traps Triggered 1 | . . . . 1 Indirectly . | . . . . . Trap Hack Attempts . | . . . . . Triggered . | . . . . . Disarmed . | . . . . . Reprogrammed . | . . . . . Reused . | . . . . . Traps Extracted . | . . . . . Installed . | . . . . . Triggered . | . . . . . Machines | -11 -10 -10 -9 -9 ---------- Run | Scr Mat Min Mat Sto Machines Disabled . | . . . . . Max in Single Turn . | . . . . . Machines Sabotaged . | . . . . . Garrisons Compromised . | . . . . . Overloaded Fab Kills . | . . . . . Hacking | -11 -10 -10 -9 -9 --------- Run | Scr Mat Min Mat Sto Machines Accessed 4 | . 1 . . 3 Terminals 3 | . 1 . . 2 Fabricators . | . . . . . Repair Stations 1 | . . . . 1 Recycling Units . | . . . . . Scanalyzers . | . . . . . Garrison Access . | . . . . . Total Hacks 11 | . 3 . . 8 Successful 7 | . 1 . . 6 Failed 4 | . 2 . . 2 Catastrophic 1 | . 1 . . . Database Lockouts . | . . . . . Manual 10 | . 3 . . 7 Terminals 10 | . 3 . . 7 Fabricators . | . . . . . Repair Stations 1 | . . . . 1 Recycling Units . | . . . . . Scanalyzers . | . . . . . Garrison Access . | . . . . . Terminal Hacks 6 | . 1 . . 5 Level Access Points 1 | . . . . 1 Emergency Access Points 2 | . . . . 2 Zone Layout 3 | . 1 . . 2 Fabricator Hacks . | . . . . . Repair Station Hacks 1 | . . . . 1 Refit 1 | . . . . 1 Recycling Unit Hacks . | . . . . . Scanalyzer . | . . . . . Garrison Access Hacks . | . . . . . Unauthorized Hacks . | . . . . . Terminals . | . . . . . Fabricators . | . . . . . Repair Stations . | . . . . . Recycling Units . | . . . . . Scanalyzers . | . . . . . Garrison Access . | . . . . . Data Cores Recovered . | . . . . . Used . | . . . . . Hacking Detections 3 | . 1 . . 2 Full Trace Events 1 | . 1 . . . Feedback Events . | . . . . . Feedback Blocked . | . . . . . Robot Schematics Acquired . | . . . . . Robots Built . | . . . . . Authchips . | . . . . . Time . | . . . . . Total Robot Build Rating . | . . . . . Part Schematics Acquired . | . . . . . Parts Built . | . . . . . Authchips . | . . . . . Time . | . . . . . Total Part Build Rating . | . . . . . Parts Repaired . | . . . . . Time . | . . . . . Parts Recycled . | . . . . . Recycled Matter . | . . . . . Retrieved Matter . | . . . . . Retrieved Components . | . . . . . Parts Scanalyzed . | . . . . . Part Schematics Acquired . | . . . . . Parts Damaged . | . . . . . Bothacking | -11 -10 -10 -9 -9 ------------ Run | Scr Mat Min Mat Sto Used RIF Installer . | . . . . . Robots Hacked . | . . . . . Non-combat . | . . . . . Combat . | . . . . . Robot Hacks Applied . | . . . . . Relay Couplers Released . | . . . . . Fabnet Peak Effective % . | . . . . . Robots Rewired . | . . . . . Allies Hacked . | . . . . . Hacks Repelled . | . . . . . Allies | -11 -10 -10 -9 -9 -------- Run | Scr Mat Min Mat Sto Total Allies 1 | . 1 . . . Largest Group 1 | . 1 1 1 1 Highest-Rated Group 76 | . 57 57 59 76 Highest-Rated Ally 76 | . 57 57 59 76 Total Orders . | . . . . . Ally Attacks 39 | . 17 2 7 13 Total Damage 1040 | . 365 50 207 418 Kills 20 | . 4 3 5 8 Allies Corrupted . | . . . . . Allies Melted . | . . . . . Intel | -11 -10 -10 -9 -9 ------- Run | Scr Mat Min Mat Sto Robot Analysis Total . | . . . . . Derelict Logs Recovered 1 | . . 1 . . Drone Launches . | . . . . . Drone Recoveries . | . . . . . Exploration | -11 -10 -10 -9 -9 ------------- Run | Scr Mat Min Mat Sto Turns Passed 1120 | 83 226 226 85 500 Spaces Moved 575 | 47 113 139 46 230 Core 40 | 3 . . . 37 Treads 526 | 44 113 139 46 184 Legs 9 | . . . . 9 Wheels . | . . . . . Hover . | . . . . . Flight . | . . . . . Fastest Speed 50 | 50 160 160 160 100 Average Speed 172 | 152 160 160 160 192 Slowest Speed 500 | 160 160 160 160 500 Overloaded Moves . | . . . . . Propulsion Burnouts . | . . . . . Robots Hopped . | . . . . . Cave-ins Triggered . | . . . . . Exploration Rate (%) 21 | 4 24 33 6 42 Regions Visited 4 Branch Regions 2 Pre-discovered Areas . | . . . . . Known Exits Taken 1 | . . . 1 . Unknown Exits Taken 3 | 1 1 1 . . Scrap Searched . | . . . . . Spaces Dug . | . . . . . Terrain Destroyed 71 | . . . . 71 Melee . | . . . . . Projectile . | . . . . . AOE 71 | . . . . 71 Terrain Rammed . | . . . . . Walls Destroyed . | . . . . . Machines Disabled . | . . . . . Actions | -11 -10 -10 -9 -9 --------- Run | Scr Mat Min Mat Sto Total 655 | 59 141 140 55 260 Wait 14 | . . . 7 7 Move 571 | 46 112 138 45 230 Hop . | . . . . . Pick Up 10 | 8 1 . . 1 Fast Attach 14 | 4 3 . 2 5 Attach . | . . . . . Detach . | . . . . . Swap 1 | . . . . 1 Drop 12 | 1 7 . . 4 Fire 19 | . 6 1 1 11 Melee . | . . . . . Ram . | . . . . . Kick . | . . . . . Crush 14 | . 12 1 . 1 Escape Stasis . | . . . . . Rewire . | . . . . . Trap . | . . . . . Miscellaneous . | . . . . . Route ------- -11/Scrapyard -10/Materials -10/Mines -9/Materials (discovered 2 exits: Mat / *Sto) -9/Storage (discovered 1 exit: Mat) History --------- Turn | Location | Event 31 | -11/Scrapyard | Discovered new exit (range 13) 84 | -11/Scrapyard | Entered Materials 264 | -10/Materials | Discovered new exit (range 16) 310 | -10/Materials | Entered Mines 311 | -10/Mines | Build established: Mutant 327 | -10/Mines | Met a Derelict bent on vengeance 523 | -10/Mines | Learned location of 2 exits from Materials 528 | -10/Mines | Discovered new exit (range 5) 536 | -10/Mines | Entered Materials 536 | -9/Materials | Evolved 2 slots: Utility x2 537 | -9/Materials | Identified exit to Storage 537 | -9/Materials | Identified exit to Materials 621 | -9/Materials | Entered Storage 954 | -9/Storage | Found Corrupted Prototype Launcher 954 | -9/Storage | Identified Scatter Rocket Array 955 | -9/Storage | System corruption reached 10% 964 | -9/Storage | Found Corrupted Scatter Rocket Array 1090 | -9/Storage | Core integrity fell below 50% 1112 | -9/Storage | Core integrity fell below 20% 1121 | -9/Storage | Destroyed by Y-45 Defender with Beam Rifle Last Messages --------------- 01105_ K-01 Serf collects debris. 01106_ The unstable cave ceiling collapses. 01108_ K-01 Serf collects debris. 01109_ U-05 Engineer lays Concrete. 01109_ Aluminum Leg destroyed. 01111_ U-05 Engineer builds a Wall. 01111_ K-01 Serf collects debris. 01114_ Y-45 Defender emerges from the garrison. 01114_ K-01 Serf collects debris. 01115_ U-05 Engineer lays Concrete. 01115_ K-01 Serf collects debris. 01116_ U-05 Engineer builds a Wall. 01117_ Aluminum Leg destroyed. 01117_ Critical hit (Burn: +37). 01117_ Scatter Rocket Array destroyed. 01118_ K-01 Serf collects debris. 01118_ K-01 Serf destroyed. 01120_ U-05 Engineer builds a Wall. 01121_ The unstable cave ceiling collapses. 01121_ K-01 Serf collects debris. Map ----- +----------------------------------------------------+ | | | | | | | | | | | | | | | | | | | | | | | | | | | | | | | | | ????????????????????????????????????? | | ????????????????????????????????????? | | ????????????????????????????????????? | | ?????????????????????????????#####??? | | ?????????????????????????????# ] #??? | | ??????##########?????????????#[[ #??? | | ????